Cogmind - Beta 13 @@@ ROGUE MODE // 2024.05.01 @ 09:29:28 // Winter2019/RPGLIKE Player: CatPlusPlus Result: Destroyed by G-47 Trooper with Particle Gun Performance ------------- Evolutions (2) 1000 Regions Visited (3) 600 Robots Destroyed (57) 285 Value Destroyed (1538) 1538 Prototype IDs (10) 200 Alien Tech Used (0) 0 Bonus (85) 85 TOTAL SCORE: 3708 Bonus ------- High Alert Combat Kills 85 Cogmind --------- Core Integrity 0/1350 Matter 132/300 Energy 140/170 System Corruption 0% Temperature Hot (291) Movement Treading (160) Location -8/Materials Parts ------- > --- POWER (1) -------- Makeshift Power Source > --- PROPULSION (3) --- Light Treads Light Treads > --- UTILITY (3) ------ Improved Heat Sink Improved Terrain Scanner Seismic Detector > --- WEAPON (3) ------- Improved Light Cannon Improved Light Cannon Assault Cannon > --- INVENTORY (5) ---- Powered Cannon Plasma Cutter Peak State ------------ > --- POWER ------------ Makeshift Power Source > --- PROPULSION ------- Light Treads Light Treads > --- UTILITY ---------- Improved Heat Sink Improved Terrain Scanner Seismic Detector > --- WEAPON ----------- Improved Light Cannon Assault Cannon Subdweller Shrapnel Launcher > --- INVENTORY -------- Powered Cannon Improved Light Cannon Plasma Cutter [Rating: 21] Favorites ----------- Power Light Ion Engine Engine Light Ion Engine Propulsion Light Treads Treads Light Treads Utility Improved Terrain Scanner Device Improved Terrain Scanner Weapon Improved Light Cannon Energy Gun Spread Laser Ballistic Gun Assault Rifle Ballistic Cannon Improved Light Cannon Launcher Subdweller Shrapnel Launcher Build | -11 -10 -10 -8 ------- Run | Yrd Mat Sub Mat Slots Evolved 6 | 3 . 1 2 Power . | . . . . Propulsion 2 | 1 . . 1 Utility 2 | 1 . 1 . Weapon 2 | 1 . . 1 Parts Attached 30 | 8 9 6 7 Power 3 | 1 1 1 . Engine 3 | 1 1 1 . Core . | . . . . Reactor . | . . . . Propulsion 4 | 2 2 . . Treads 4 | 2 2 . . Leg . | . . . . Wheel . | . . . . Hover . | . . . . Flight . | . . . . Utility 10 | 3 2 4 1 Device 10 | 3 2 4 1 Storage . | . . . . Processor . | . . . . Hackware . | . . . . Protection . | . . . . Artifact . | . . . . Weapon 13 | 2 4 1 6 Energy Gun 3 | . 3 . . Energy Cannon . | . . . . Ballistic Gun 2 | 2 . . . Ballistic Cannon 6 | . 1 1 4 Launcher 2 | . . . 2 Special Weapon . | . . . . Impact Weapon . | . . . . Slashing Weapon . | . . . . Piercing Weapon . | . . . . Special Melee Weapon . | . . . . Unidentified Prototypes . | . . . . Parts Lost . | . . . . Power . | . . . . Propulsion . | . . . . Utility . | . . . . Weapon . | . . . . Highest Loss Streak . | . . . . To Critical Strikes . | . . . . Average Slot Usage (%) 99 | . 99 99 97 Engine 13 | . 14 12 11 Treads 26 | . 28 25 23 Device 31 | . 28 34 35 Energy Gun 5 | . 12 . . Ballistic Gun 5 | . 10 . . Ballistic Cannon 15 | . 5 25 24 Naked Turns . | . . . . Heaviest Build 24 | 9 14 20 24 Greatest Support 40 | 40 40 40 40 Greatest Overweight (x) 1 | 1 . . . Average Overweight (x) . | . . . . Largest Inventory Capacity 5 | 3 4 4 5 Average Capacity 3 | 3 3 4 4 Most Carried 4 | 3 4 4 4 Average Carried 3 | 2 3 3 3 Final Capacity 5 | 3 4 4 5 Final Carried 4 | 3 4 4 3 Class Distribution -------------------- 60% | Mutant 39% | Skirmisher Dominant Class ---------------- Mutant | -10/Materials Skirmisher | -10/Subcaves Skirmisher | -8/Materials Resources | -11 -10 -10 -8 ----------- Run | Yrd Mat Sub Mat Matter Collected 1370 | 406 335 350 279 Remotely 213 | 213 . . . Salvage Created 1323 | 200 672 148 303 Parts 97 | 17 38 12 30 Haulers Intercepted 2 | . 2 . . Recyclers Shooed 1 | . 1 . . Parts Field Recycled . | . . . . Retrieved Matter . | . . . . Parts Self-Destructed 19 | . . 19 . Prevented . | . . . . Kills | -11 -10 -10 -8 ------- Run | Yrd Mat Sub Mat Combat Hostiles Destroyed 40 | . 16 7 17 Guns 13 | . 13 . . Cannons 20 | . 3 7 10 AOE 7 | . . . 7 Classes Destroyed 12 | 3 4 1 4 Worker 2 | 1 . . 1 Builder 3 | . . . 3 Tunneler 5 | 5 . . . Hauler 2 | . 2 . . Recycler 1 | 1 . . . Operator 1 | . 1 . . Watcher 3 | . 3 . . Swarmer 11 | . . . 11 Grunt 20 | . 16 . 4 Brawler 1 | . . . 1 Sentry 1 | . . . 1 Subdweller 7 | . . 7 . Best Kill Streak 17 | 2 3 2 17 Combat Bots Only 13 | . 3 2 13 Max Kills in Single Turn 3 | 1 1 1 3 Gunslinging . | . . . . Exploded 2 | . . . 2 Melee . | . . . . Uniques/NPCs Destroyed . | . . . . Combat | -11 -10 -10 -8 -------- Run | Yrd Mat Sub Mat Hostile Shots Fired 236 | . 62 36 138 Missed 70 | . 16 10 44 Damage Taken 2321 | . 562 519 1240 Core 1884 | . 452 430 1002 Absorbed by Shields . | . . . . Redirected to Core 1455 | . 353 309 793 Core Remaining (%) 80 | 100 . 61 . Volleys Fired 157 | 17 69 38 33 Largest 3 | 2 2 2 3 Hottest 122 | 40 104 78 122 Shots Fired 298 | 34 126 70 68 Gun 143 | 34 109 . . Cannon 149 | . 17 70 62 Launcher 6 | . . . 6 Special . | . . . . Kinetic 244 | 34 72 70 68 Thermal 54 | . 54 . . Explosive . | . . . . Electromagnetic . | . . . . Robot Hit Streak 10 | 6 10 6 8 Robot Miss Streak 11 | 3 11 4 3 Penetration Max . | . . . . Secondary Targets 2 | . 2 . . Max Gunslinging Chain 1 | . 1 . . Shots Hit Robots 178 | 17 93 32 36 Core Hits 132 | 8 82 13 29 Critical Kills 1 | 1 . . . Critical Parts Destroyed 1 | . 1 . . Critical Strikes 4 | 1 2 1 . Destroy 2 | 1 1 . . Blast 2 | . 1 1 . Melee Attacks . | . . . . Impact . | . . . . Slashing . | . . . . Piercing . | . . . . Sneak Attacks . | . . . . Combat Hostiles . | . . . . Follow-up Attacks . | . . . . Damage Inflicted 3711 | 210 1243 670 1588 Guns 1266 | 210 1056 . . Cannons 1689 | . 184 670 835 Explosions 744 | . . . 744 Melee . | . . . . Ramming 12 | . 3 . 9 Kinetic 2974 | 210 577 670 1517 Thermal 725 | . 663 . 62 Explosive . | . . . . Electromagnetic . | . . . . Impact . | . . . . Slashing . | . . . . Piercing . | . . . . Highest Corruption 1 | . 1 1 . Average Corruption 1 | . 1 1 . Corruption Purged 1 | . . 1 . Corruption Blocked . | . . . . Effects 15 | . 12 3 . Message Errors 4 | . 3 1 . Matter Fused 3 | . 3 . . Heat Flow Errors 3 | . 2 1 . Energy Discharges 2 | . 2 . . Data Loss (minor) 2 | . 2 . . Alerts 1 | . . 1 . Overload Shots . | . . . . Overflow Damage 46 | . . . 46 Projectiles . | . . . . Explosions 46 | . . . 46 Melee . | . . . . Knockbacks 23 | . . 8 15 Impact . | . . . . Kinetic 23 | . . 8 15 Secondary . | . . . . Self-Inflicted Damage 4 | . . . 4 Shots 1 | . . . 1 Rammed 5 | . 4 . 1 Targets Rammed 5 | . 4 . 1 Kicked . | . . . . Crushed . | . . . . Highest Temperature 324 | . 324 86 282 Average Temperature 89 | . 92 62 69 Received Heat Transfer 975 | . 351 66 558 Effects 4 | . 3 . 1 Energy Bleed 1 | . . . 1 Interference 3 | . 3 . . Siege Activations . | . . . . Robots Corrupted . | . . . . Combat Hostiles . | . . . . Parts Fried . | . . . . Impact Corruptions . | . . . . Robots Melted . | . . . . Combat Hostiles . | . . . . Parts Melted . | . . . . Heat Transferred 920 | . 820 . 100 Parts Sabotaged . | . . . . Parts Stolen . | . . . . Parts Stripped . | . . . . Power Chain Reactions . | . . . . Alert | -11 -10 -10 -8 ------- Run | Yrd Mat Sub Mat Peak Influence 785 | 35 270 . 785 Initial 22 | . 22 . . Average 130 | 19 127 . 245 Maximum Alert Level 3 | . 1 . 3 Low Security (%) 91 | 100 92 . 71 Level 1 5 | . 7 . . Level 2 1 | . . . 12 Level 3 1 | . . . 15 Level 4 . | . . . . Level 5 . | . . . . High Security . | . . . . Max Security . | . . . . Squads Dispatched 7 | . 5 . 2 Investigation 3 | . 3 . . Extermination . | . . . . Reinforcement 3 | . 2 . 1 Assault 1 | . . . 1 Garrison . | . . . . Intercept . | . . . . Searches Triggered . | . . . . Construction Impeded 1 | . . . 1 Haulers Reinforced . | . . . . Active Scanning Responses . | . . . . Cargo Convoy Interrupts . | . . . . Stealth | -11 -10 -10 -8 --------- Run | Yrd Mat Sub Mat Distress Signals 1 | . . . 1 Communications Jammed . | . . . . Distress Signals . | . . . . Times Spotted 58 | . 25 7 26 Peak Tracking Total 8 | . 3 2 8 Tactical Retreats 3 | . 1 . 2 Traps | -11 -10 -10 -8 ------- Run | Yrd Mat Sub Mat Traps Triggered 1 | . 1 . . Indirectly . | . . . . Trap Hack Attempts . | . . . . Triggered . | . . . . Disarmed . | . . . . Reprogrammed . | . . . . Reused . | . . . . Traps Extracted . | . . . . Installed . | . . . . Triggered . | . . . . Machines | -11 -10 -10 -8 ---------- Run | Yrd Mat Sub Mat Machines Disabled 9 | . . 1 8 Max in Single Turn 5 | . . 1 5 Garrison Access 1 | . . . 1 Machines Repaired . | . . . . Machines Dismantled . | . . . . Machines Sabotaged . | . . . . Overloaded Fab Kills . | . . . . Hacking | -11 -10 -10 -8 --------- Run | Yrd Mat Sub Mat Machines Accessed 11 | . 8 1 2 Terminals 7 | . 6 . 1 Fabricators . | . . . . Repair Stations 1 | . . . 1 Recycling Units 2 | . 2 . . Scanalyzers . | . . . . Garrison Access . | . . . . Total Hacks 31 | . 22 1 8 Successful 13 | . 9 1 3 Failed 18 | . 13 . 5 Catastrophic 4 | . 3 . 1 Database Lockouts . | . . . . Manual 4 | . 4 . . Terminals 24 | . 17 . 7 Fabricators . | . . . . Repair Stations 1 | . . . 1 Recycling Units 5 | . 5 . . Scanalyzers . | . . . . Garrison Access . | . . . . Terminal Hacks 10 | . 6 1 3 Branch Access Points 1 | . . . 1 Locate Traps 3 | . 2 . 1 Recall Investigation 1 | . 1 . . Hauler Manifests 2 | . 1 . 1 Zone Layout 2 | . 2 . . Derelict Proto ID Bank 1 | . . 1 . Fabricator Hacks . | . . . . Repair Station Hacks . | . . . . Recycling Unit Hacks 1 | . 1 . . Retrieve Components 1 | . 1 . . Scanalyzer . | . . . . Garrison Access Hacks . | . . . . Unauthorized Hacks 2 | . 2 . . Terminals . | . . . . Fabricators . | . . . . Repair Stations . | . . . . Recycling Units 2 | . 2 . . Tunnel 2 | . 2 . . Scanalyzers . | . . . . Garrison Access . | . . . . Data Cores Recovered 1 | . 1 . . Used . | . . . . Hacking Detections 8 | . 7 . 1 Full Trace Events 1 | . 1 . . Feedback Events 1 | . 1 . . Corruption 1 | . 1 . . Feedback Blocked . | . . . . Robot Schematics Acquired . | . . . . Robots Built . | . . . . Authchips . | . . . . Time . | . . . . Total Robot Build Rating . | . . . . Part Schematics Acquired . | . . . . Parts Built . | . . . . Authchips . | . . . . Time . | . . . . Total Part Build Rating . | . . . . Parts Repaired . | . . . . Time . | . . . . Parts Recycled . | . . . . Recycled Matter . | . . . . Retrieved Matter . | . . . . Retrieved Components 9 | . 9 . . Parts Scanalyzed . | . . . . Part Schematics Acquired . | . . . . Parts Damaged . | . . . . Bothacking | -11 -10 -10 -8 ------------ Run | Yrd Mat Sub Mat Used RIF Installer . | . . . . Robots Hacked . | . . . . Non-combat . | . . . . Combat . | . . . . Robot Hacks Applied . | . . . . Relay Couplers Released 1 | . . . 1 Machine Destruction 1 | . . . 1 Fabnet Peak Effective % . | . . . . Robots Rewired . | . . . . Allies Hacked . | . . . . Hacks Repelled . | . . . . Allies | -11 -10 -10 -8 -------- Run | Yrd Mat Sub Mat Total Allies . | . . . . Largest Group . | . . . . Highest-Rated Group . | . . . . Highest-Rated Ally . | . . . . Total Orders . | . . . . Ally Attacks . | . . . . Total Damage . | . . . . Kills . | . . . . Allies Corrupted . | . . . . Allies Melted . | . . . . Intel | -11 -10 -10 -8 ------- Run | Yrd Mat Sub Mat Robot Analysis Total . | . . . . Derelict Logs Recovered 1 | . . 1 . Drone Launches . | . . . . Drone Recoveries . | . . . . Exploration | -11 -10 -10 -8 ------------- Run | Yrd Mat Sub Mat Turns Passed 4618 | 264 2099 1945 310 Spaces Moved 2450 | 129 1120 1097 104 Core 16 | 16 . . . Treads 2434 | 113 1120 1097 104 Legs . | . . . . Wheels . | . . . . Hover . | . . . . Flight . | . . . . Fastest Speed 50 | 50 160 160 160 Average Speed 159 | 149 160 160 160 Slowest Speed 160 | 160 160 160 160 Overloaded Moves . | . . . . Propulsion Burnouts . | . . . . Robots Hopped . | . . . . Cave-ins Triggered . | . . . . Exploration Rate (%) 43 | 6 98 48 23 Regions Visited 3 Branch Regions 1 Pre-discovered Areas 2 | . 2 . . Known Exits Taken . | . . . . Unknown Exits Taken 3 | 1 1 1 . Scrap Searched 14 | . . 14 . Spaces Dug . | . . . . Terrain Destroyed 94 | . 2 . 92 Melee . | . . . . Projectile 8 | . 2 . 6 AOE 86 | . . . 86 Terrain Rammed . | . . . . Walls Destroyed . | . . . . Machines Disabled . | . . . . Actions | -11 -10 -10 -8 --------- Run | Yrd Mat Sub Mat Total 2872 | 163 1305 1217 187 Wait 161 | 1 67 56 37 Move 2447 | 128 1119 1096 104 Hop . | . . . . Pick Up 19 | 6 10 3 . Fast Attach 13 | 7 3 3 . Attach 3 | . . 1 2 Detach 1 | . . . 1 Swap 14 | 1 6 2 5 Drop 27 | 3 16 6 2 Fire 157 | 17 69 38 33 Melee . | . . . . Ram . | . . . . Kick . | . . . . Crush 5 | . 4 . 1 Escape Stasis . | . . . . Rewire . | . . . . Trap . | . . . . Miscellaneous 25 | . 11 12 2 Route ------- -11/Scrapyard -10/Materials (discovered 5 exits: [*Mat x3] / [*Min] / *Sub) -10/Subcaves -8/Materials History --------- Turn | Location | Event 1 | -11/Scrapyard | Upgraded with Propulsion slot (x1) 1 | -11/Scrapyard | Upgraded with Utility slot (x1) 1 | -11/Scrapyard | Upgraded with Weapon slot (x1) 16 | -11/Scrapyard | Discovered new exit (range 14) 265 | -11/Scrapyard | Entered Materials 304 | -10/Materials | Build established: Mutant 381 | -10/Materials | Discovered new exit (range 16) 851 | -10/Materials | Discovered new exit (range 16) 1144 | -10/Materials | Core integrity fell below 50% 1498 | -10/Materials | Discovered new exit (range 15) 1559 | -10/Materials | Reached level 2 1652 | -10/Materials | Discovered new exit (range 15) 2209 | -10/Materials | Discovered new exit (range 9) 2364 | -10/Materials | Entered Subcaves 2366 | -10/Subcaves | Reached level 3 2372 | -10/Subcaves | Learned Materials stockpile data 2804 | -10/Subcaves | Visited 4L-MR0's lab 2829 | -10/Subcaves | Found Powered Cannon 2853 | -10/Subcaves | Upgraded with Utility slot (x1) 3126 | -10/Subcaves | Build established: Skirmisher 3329 | -10/Subcaves | Discovered new exit (range 18) 3428 | -10/Subcaves | Disturbed a concealed Subdweller 4205 | -10/Subcaves | Disturbed a concealed Subdweller 4309 | -10/Subcaves | Entered Materials 4311 | -8/Materials | Reached level 4 4420 | -8/Materials | Core integrity fell below 50% 4530 | -8/Materials | Reached level 5 4545 | -8/Materials | Reached level 6 4547 | -8/Materials | Upgraded with Propulsion slot (x1) 4547 | -8/Materials | Upgraded with Weapon slot (x1) 4603 | -8/Materials | Destroyed 13 combat bots 4609 | -8/Materials | Core integrity fell below 20% 4619 | -8/Materials | Destroyed by G-47 Trooper with Particle Gun Last Messages --------------- 04608_ G-47 Trooper destroyed. 04609_ Acquired 53 matter. 04609_ U-05 Engineer lays Concrete. 04610_ Critical hit (Burn: +37). 04610_ U-05 Engineer lays Concrete. 04611_ K-01 Serf collects debris. 04611_ U-05 Engineer lays Concrete. 04612_ K-01 Serf collects debris. 04612_ G-50 Soldier knocked back. 04612_ U-05 Engineer lays Concrete. 04612_ Critical hit (Burn: +37). 04613_ U-05 Engineer lays Concrete. 04614_ T-07 Excavator destroyed. 04615_ U-05 Engineer lays Concrete. 04615_ G-47 Trooper knocked back. 04615_ U-05 Engineer lays Concrete. 04615_ K-01 Serf collects debris. 04616_ U-05 Engineer lays Concrete. 04618_ G-50 Soldier knocked back. 04619_ Overheating: Energy bleed (-30). Map ----- +----------------------------------------------------+ | | | ######################?????#?????????????????????? | | ###### ! #????????????????????????????? | | #### """ #?###????????????????????????? | | #### """ """ R" ###?#????????????????????????? | | " %#### """ """ """ ###?##?#?????????????????????? | | " #### """ """ ####?#???????????????????????? | | " #### [ ####?##??????????????????????? | | ##########+#########????##????????????????????? | | +########## % ####??#?##??#????????????????????? | | % ###########?###??????????????????? | | % ######??######?##????????????????? | | [ #########??##?????#??????????????? | | +##### ########?#####? ? ???????????????? | | ## ""#########??? ???=??????????????? | | "" ## T"###?#####??# ?? ?#????????????? | | "" ## // "##?######?## ???? ?????????????? | | " #T // ######??######??????# ???????????? | | ## #######?# #### ? ???????????????? | | ###### #########;##;#####+###?#?????????? | | # ######## ??? ?????????? | | # ######## %% ? ?? ????????????? | | # #;;;;;;%% % ??? ? ? ? ????????? | | = # ""% k % =%g ###?#?#??#?#?????????? | | + ^""" ! ==k ####??#??? ????????? | | # ^""" % g % %@u #?#?#??? ??????????? | | # a**%[%*%#?#?##?#? ?????????? | | # ^ ^% g! != ###"###??# ? ????????? | | # ""% u % %= ??"?????????? | | ###### """ % #???????????? | | ###### """ % % ! # ??????????? | | ##?### g #???????????? | | ?#?### g """ #???????????? | | ############# u """"" ##??????????? | | ?#?# *] """"" ????????????? | | ? " w """"" ????????????? | | ?"? """ ; ""?? ????????????? | | """ """ " ; #####????????????????? | | """ """ " #####??#???????????????? | | ; " ######?????????????????? | | " ! #####??????????????????? | | ??##+###""" " """" ####???????????????????? | | #?# ###""" " """" #??#???????????????????? | | ?? ? " """" ##?????????????????????? | | ??? # "T" % " #??????????????????????? | | ??? # "= "###?#??##??????????????????????? | | ????? # ! "[ "###?##?????????????????????????? | | ????????###"#" "###??#?????????????????????????? | | ??????????### ##?#???????????????????????????? | | ?????????? ? ????????????????????????????? | +----------------------------------------------------+ Best States ------------- Heat Dissipation 45 Energy Generation 15 Energy Capacity 250 Matter Stores 300 Matter Capacity 300 Sight Range 18 Robot Scan Range 4 Terrain Scan Range 16 Terrain Scan Density 210 Evasion (%) 40 Recoil Reduction 2 Item Schematics ----------------- None Robot Schematics ------------------ None Fabricated ------------ Nothing Alien Tech Used ----------------- None Achievements -------------- None Challenges ------------ None RPGLIKE | -11 -10 -10 -8 --------- Run | Yrd Mat Sub Mat Levels Raised 5 | . 1 1 3 XP Earned 11345 | 3000 2545 1000 4800 XP Spent 10490 | 3000 1480 1515 4495 Upgrades 35 | 6 9 8 12 Propulsion Slot 2 | 1 . . 1 Utility Slot 2 | 1 . 1 . Weapon Slot 2 | 1 . . 1 Core Integrity 15 | . 8 . 7 Heat Dissipation 1 | . . 1 . Inventory Capacity 5 | 3 1 . 1 Sight Range 2 | . . 2 . Sensor Range 2 | . . 2 . Terrain Scan Density 2 | . . 2 . TH Damage % 2 | . . . 2 Protomatter Created 212 | . 77 89 46 Integrity Restored 528 | . 231 267 30 Core 528 | . 231 267 30 Protomatter Decayed 189 | . . 154 35 Game ------ Seed DeuteriumRocketDetector Manual? 0 Play Time 00:37:24 Cumulative 140.9 hours Start 2024.05.01 @ 05:47:02 End 2024.05.01 @ 09:29:28 Sessions 3 Manual Loads 0 Difficulty Rogue Special Mode Winter2019/RPGLIKE Game No. 79 Rogue 79 Adventurer 0 Explorer 0 Win Type - Total 5 Types 3/0/1/1/0/0/0/0/0 Lore% 59 Gallery% 78 Achievement% 56 Wizard Run 0 Options --------- Layout 2 ASCII 0 Keyboard 0 Movement Numpad Keybinds 0 Fullscreen 2 Font 32/Tamsyn Map View 50x44 Zoom Use 0% Tactical HUD 1 Map Filters NONE Filters NONE Steam 1 RUN: 4a3795fe-5a7b-40aa-b601-3c6a6984bfaf